[Event "Ebbe cup 43"]
[Site "Schackcentrum, Vegatan 20, Gothenburg, Sweden"]
[Date "2022.09.09"]
[Round "1.5"]
[White "Konduru, Sairahul"]
[Black "Karlsson, Stefan"]
[Result "0-1"]
[TimeControl "90 minutes for 40 moves + 15 minutes for the rest of the game + 30 seconds per move from move one."]
[WhiteFideId "1768247"]
[BlackFideId "1771183"]
[WhiteElo "1281"]
[BlackElo "1660"]

1. e4 {[%clk 01:30:59]} c6 {[%clk 01:30:40]} {[%emt 00:00:21]} 2. d4 {[%clk
01:31:08]} {[%emt 00:00:21]} d5 {[%clk 01:30:18]} {[%emt 00:00:52]} 3. Nc3
{[%clk 01:31:31]} {[%emt 00:00:07]} dxe4 {[%clk 01:30:32]} {[%emt 00:00:17]} 4.
Nxe4 {[%clk 01:31:37]} {[%emt 00:00:24]} Bf5 {[%clk 01:29:13]} {[%emt
00:01:49]} 5. Ng3 {[%clk 01:27:48]} {[%emt 00:04:19]} Bg6 {[%clk 01:29:27]}
{[%emt 00:00:16]} 6. Nf3 {[%clk 01:27:59]} {[%emt 00:00:19]} Nd7 {[%clk
01:29:52]} {[%emt 00:00:06]} 7. Bd3 {[%clk 01:27:11]} {[%emt 00:01:18]} Ngf6
{[%clk 01:28:45]} {[%emt 00:01:36]} 8. c4 {[%clk 01:20:39]} {[%emt 00:07:00]}
Qa5+ {[%clk 01:27:18]} {[%emt 00:02:00]} 9. Bd2 {[%clk 01:19:49]} {[%emt
00:01:20]} Qc7 {[%clk 01:26:34]} {[%emt 00:01:15]} 10. Qc2 {[%emt 00:07:08]} e6
{[%clk 01:22:47]} {[%emt 00:04:02]} 11. O-O {[%clk 01:06:54]} {[%emt 00:07:02]}
Bd6 {[%clk 01:19:57]} {[%emt 00:03:20]} 12. Rfe1 {[%clk 01:02:10]} {[%emt
00:05:14]} O-O {[%clk 01:17:33]} {[%emt 00:02:55]} 13. Bxg6 {[%clk 00:58:46]}
{[%emt 00:03:54]} hxg6 {[%clk 01:14:43]} {[%emt 00:03:20]} 14. Ne4 {[%clk
00:56:42]} {[%emt 00:02:34]} Bf4 {[%clk 01:08:44]} {[%emt 00:06:29]} 15. Nxf6+
{[%clk 00:53:09]} {[%emt 00:04:03]} gxf6 {[%clk 01:04:54]} {[%emt 00:04:21]} 16.
Re4 {[%clk 00:49:01]} {[%emt 00:04:36]} Bxd2 {[%clk 01:04:14]} {[%emt
00:01:11]} 17. Qxd2 {[%clk 00:48:22]} {[%emt 00:01:09]} Kg7 {[%clk 01:04:06]}
{[%emt 00:00:38]} 18. Rc1 {[%clk 00:43:42]} {[%emt 00:05:05]} Rh8 {[%clk
01:01:50]} {[%emt 00:02:52]} 19. d5 {[%clk 00:40:09]} {[%emt 00:04:02]} Nc5
{[%clk 00:59:50]} {[%emt 00:02:30]} 20. Rd4 {[%clk 00:35:24]} {[%emt 00:05:15]}
e5 {[%clk 00:56:12]} {[%emt 00:04:08]} 21. d6 {[%clk 00:34:03]} {[%emt
00:01:47]} Qd7 {[%clk 00:53:49]} {[%emt 00:02:58]} 22. Rh4 {[%clk 00:29:06]}
{[%emt 00:05:27]} Rxh4 {[%clk 00:52:01]} {[%emt 00:02:19]} 23. Nxh4 {[%clk
00:29:27]} {[%emt 00:00:09]} e4 {[%clk 00:52:17]} {[%emt 00:00:13]} 24. Qd4
{[%clk 00:20:29]} {[%emt 00:09:28]} Nd3 {[%clk 00:48:30]} {[%emt 00:04:16]} 25.
Rc2 {[%clk 00:18:30]} {[%emt 00:02:29]} g5 {[%clk 00:45:07]} {[%emt 00:03:55]}
26. Qxe4 {[%clk 00:10:29]} {[%emt 00:08:31]} Re8 {[%clk 00:44:24]} {[%emt
00:01:13]} 27. Nf5+ {[%clk 00:10:14]} {[%emt 00:00:44]} Kf8 {[%clk 00:43:10]}
{[%emt 00:01:44]} 28. Qxd3 {[%clk 00:05:38]} {[%emt 00:05:07]} Re1+ {[%clk
00:43:30]} {[%emt 00:00:10]} 29. Qf1 {[%clk 00:06:00]} {[%emt 00:00:07]} Rxf1+
{[%clk 00:43:54]} {[%emt 00:00:07]} 30. Kxf1 {[%clk 00:06:19]} {[%emt
00:00:11]} Qxf5 {[%clk 00:44:19]} {[%emt 00:00:05]} 31. Rd2 {[%clk 00:06:17]}
{[%emt 00:00:31]} Qb1+ {[%clk 00:43:31]} {[%emt 00:01:18]} 32. Ke2 {[%clk
00:06:04]} {[%emt 00:00:44]} Qe4+ {[%clk 00:43:55]} {[%emt 00:00:06]} 33. Kd1
{[%clk 00:05:55]} {[%emt 00:00:40]} Qb1+ {[%clk 00:43:52]} {[%emt 00:00:33]} 34.
Ke2 {[%clk 00:06:03]} {[%emt 00:00:21]} Ke8 {[%clk 00:44:03]} {[%emt 00:00:19]}
35. b3 {[%clk 00:05:31]} {[%emt 00:01:02]} Qe4+ {[%clk 00:41:47]} {[%emt
00:02:46]} 36. Kf1 {[%clk 00:05:26]} {[%emt 00:00:34]} Kd7 {[%clk 00:42:04]}
{[%emt 00:00:14]} 37. h3 {[%clk 00:04:55]} {[%emt 00:01:01]} b6 {[%clk
00:41:45]} {[%emt 00:00:50]} 38. a3 {[%clk 00:02:43]} {[%emt 00:02:42]} Qb1+
{[%clk 00:42:01]} {[%emt 00:00:13]} 39. Ke2 {[%clk 00:02:58]} {[%emt 00:00:15]}
Qxb3 {[%clk 00:42:26]} {[%emt 00:00:05]} 40. Rd3 {[%clk 00:00:42]} {[%emt
00:02:46]} Qxc4 {[%clk 00:42:47]} {[%emt 00:00:09]} 41. Kd2 {[%clk 00:15:27]}
{[%emt 00:00:45]} f5 {[%clk 00:57:20]} {[%emt 00:00:57]} 42. Ke3 {[%clk
00:15:48]} {[%emt 00:00:10]} Qe4+ {[%clk 00:57:34]} {[%emt 00:00:15]} 43. Kd2
{[%clk 00:16:10]} {[%emt 00:00:08]} Qxg2 {[%clk 00:57:59]} {[%emt 00:00:05]} 44.
Ke2 {[%clk 00:16:27]} {[%emt 00:00:13]} Qe4+ {[%clk 00:58:15]} {[%emt
00:00:14]} 45. Kd2 {[%clk 00:16:51]} {[%emt 00:00:07]} c5 {[%clk 00:57:59]}
{[%emt 00:00:46]} 46. Re3 {[%clk 00:17:11]} {[%emt 00:00:10]} Qd4+ {[%clk
00:58:12]} {[%emt 00:00:17]} 47. Ke2 {[%clk 00:17:38]} {[%emt 00:00:03]} c4
{[%clk 00:57:25]} {[%emt 00:01:17]} 48. Re7+ {[%clk 00:17:45]} {[%emt
00:00:23]} Kxd6 {[%clk 00:57:47]} {[%emt 00:00:08]} 49. Re8 {[%clk 00:17:50]}
{[%emt 00:00:26]} Qb2+ {[%clk 00:57:56]} {[%emt 00:00:21]} 50. Ke1 {[%clk
00:17:53]} {[%emt 00:00:27]} Qxa3 {[%clk 00:58:07]} {[%emt 00:00:19]} 51. Rd8+
{[%clk 00:17:41]} {[%emt 00:00:42]} Kc7 {[%clk 00:58:24]} {[%emt 00:00:13]} 52.
Rd2 {[%clk 00:17:38]} {[%emt 00:00:33]} c3 {[%clk 00:58:37]} {[%emt 00:00:16]}
53. Rd1 {[%clk 00:17:31]} {[%emt 00:00:38]} c2 {[%clk 00:59:01]} {[%emt
00:00:06]} 54. Rd2 {[%clk 00:17:19]} {[%emt 00:00:42]} c1=Q+ {[%clk 00:59:12]}
{[%emt 00:00:18]} 55. Ke2 {[%clk 00:17:34]} {[%emt 00:00:15]} Qe7+ {[%clk
00:59:26]} {[%emt 00:00:16]} 56. Kd3 {[%clk 00:17:54]} {[%emt 00:00:10]} Qe4#
{[%clk 00:59:47]} {[%emt 00:00:08]} 0-1

[Event "Ebbe cup 43"]
[Site "Schackcentrum, Vegatan 20, Gothenburg, Sweden"]
[Date "2022.09.09"]
[Round "1.6"]
[White "Josefsson, Ivar"]
[Black "Dahlin, Emil"]
[Result "1-0"]
[TimeControl "90 minutes for 40 moves + 15 minutes for the rest of the game + 30 seconds per move from move one."]
[WhiteFideId "1766040"]
[BlackFideId "1771035"]
[WhiteElo "1634"]
[BlackElo "1133"]

1. d4 {[%clk 01:30:59]} {[%emt 00:00:01]} d5 {[%clk 01:30:44]} {[%emt
00:00:16]} 2. c4 {[%clk 01:31:25]} {[%emt 00:00:04]} c6 {[%clk 01:30:27]}
{[%emt 00:00:47]} 3. Nc3 {[%clk 01:31:50]} {[%emt 00:00:05]} Bf5 {[%clk
01:30:07]} {[%emt 00:00:50]} 4. cxd5 {[%clk 01:30:57]} {[%emt 00:01:24]} cxd5
{[%clk 01:30:12]} {[%emt 00:00:25]} 5. Qb3 {[%clk 01:29:39]} {[%emt 00:01:48]}
Nc6 {[%clk 01:20:47]} {[%emt 00:09:55]} 6. Nf3 {[%clk 01:13:20]} {[%emt
00:16:48]} Be4 {[%clk 01:15:37]} {[%emt 00:05:40]} 7. Qxb7 {[%emt 00:03:37]}
Rc8 {[%clk 01:11:39]} {[%emt 00:04:24]} 8. Bf4 {[%clk 01:02:44]} {[%emt
00:08:02]} Bxf3 {[%clk 01:06:59]} {[%emt 00:05:10]} 9. exf3 {[%clk 01:01:59]}
{[%emt 00:01:16]} Nxd4 {[%clk 01:06:16]} {[%emt 00:01:11]} 10. Bb5+ {[%clk
01:02:09]} {[%emt 00:00:21]} Nxb5 {[%clk 01:05:52]} {[%emt 00:00:54]} 11. Qxb5+
{[%clk 00:56:00]} {[%emt 00:06:40]} Qd7 {[%clk 01:06:03]} {[%emt 00:00:19]} 12.
Qxd7+ {[%clk 00:56:17]} {[%emt 00:00:13]} Kxd7 {[%clk 01:06:02]} {[%emt
00:00:31]} 13. Nxd5 {[%clk 00:54:06]} {[%emt 00:02:41]} Nf6 {[%clk 01:05:45]}
{[%emt 00:00:46]} 14. Nc3 {[%clk 00:53:03]} {[%emt 00:01:33]} e6 {[%clk
01:04:00]} {[%emt 00:02:15]} 15. Rd1+ {[%clk 00:51:36]} {[%emt 00:01:57]} Kc6
{[%clk 01:00:22]} {[%emt 00:04:09]} 16. O-O {[%clk 00:42:47]} {[%emt 00:09:19]}
Bb4 {[%clk 00:59:59]} {[%emt 00:00:53]} 17. Rd3 {[%clk 00:41:58]} {[%emt
00:01:18]} Rcd8 {[%clk 00:54:37]} {[%emt 00:05:53]} 18. Rfd1 {[%clk 00:40:36]}
{[%emt 00:01:52]} Rxd3 {[%clk 00:53:24]} {[%emt 00:01:42]} 19. Rxd3 {[%clk
00:41:00]} {[%emt 00:00:07]} Kc5 {[%clk 00:47:49]} {[%emt 00:06:05]} 20. Be3+
{[%clk 00:40:53]} {[%emt 00:00:37]} Kc4 {[%clk 00:44:37]} {[%emt 00:03:42]} 21.
Rd4+ {[%clk 00:41:11]} {[%emt 00:00:12]} Kc5 {[%clk 00:44:24]} {[%emt
00:00:43]} 22. Rd8+ {[%clk 00:41:30]} {[%emt 00:00:10]} Kc4 {[%clk 00:44:07]}
{[%emt 00:00:48]} 23. Rxh8 {[%clk 00:41:33]} {[%emt 00:00:26]} Bxc3 {[%clk
00:43:51]} {[%emt 00:00:46]} 24. Rc8+ {[%clk 00:41:52]} {[%emt 00:00:12]} Kd5
{[%clk 00:43:28]} {[%emt 00:00:52]} 25. Rxc3 {[%clk 00:42:16]} {[%emt
00:00:06]} Nd7 {[%clk 00:42:01]} {[%emt 00:01:57]} 26. Bxa7 {[%clk 00:41:18]}
{[%emt 00:01:28]} f5 {[%clk 00:41:40]} {[%emt 00:00:51]} 27. a4 {[%clk
00:41:26]} {[%emt 00:00:23]} Ne5 {[%clk 00:41:21]} {[%emt 00:00:49]} 28. b3
{[%clk 00:40:30]} {[%emt 00:01:25]} Nf7 {[%clk 00:40:41]} {[%emt 00:01:09]} 29.
Bb8 {[%clk 00:40:17]} {[%emt 00:00:43]} Kd4 {[%clk 00:39:48]} {[%emt 00:01:24]}
30. Rc4+ {[%clk 00:40:41]} {[%emt 00:00:06]} Kd5 {[%clk 00:39:23]} {[%emt
00:00:55]} 31. a5 {[%clk 00:41:05]} {[%emt 00:00:06]} Nd8 {[%clk 00:39:03]}
{[%emt 00:00:49]} 32. Rc7 {[%clk 00:39:10]} {[%emt 00:02:24]} Nc6 {[%clk
00:38:31]} {[%emt 00:01:03]} 33. Rxc6 {[%clk 00:37:28]} {[%emt 00:02:12]} Kxc6
{[%clk 00:38:43]} {[%emt 00:00:18]} 34. a6 {[%clk 00:37:43]} {[%emt 00:00:16]}
Kb6 {[%clk 00:38:53]} {[%emt 00:00:20]} 35. a7 {[%clk 00:38:08]} {[%emt
00:00:05]} Kb7 {[%clk 00:38:49]} {[%emt 00:00:34]} 36. b4 {[%clk 00:38:30]}
{[%emt 00:00:08]} Ka8 {[%clk 00:38:06]} {[%emt 00:01:12]} 37. b5 {[%clk
00:38:52]} {[%emt 00:00:08]} Kb7 {[%clk 00:38:19]} {[%emt 00:00:17]} 38. b6
{[%clk 00:39:16]} {[%emt 00:00:06]} Ka8 {[%clk 00:38:03]} {[%emt 00:00:45]} 39.
f4 {[%clk 00:39:35]} {[%emt 00:00:11]} h6 {[%clk 00:37:45]} {[%emt 00:00:48]}
40. h4 {[%clk 00:40:02]} {[%emt 00:00:03]} h5 {[%clk 00:37:30]} {[%emt
00:00:46]} 41. Kf1 {[%clk 00:40:15]} {[%emt 00:00:17]} Kb7 {[%clk 00:37:24]}
{[%emt 00:00:36]} 42. Ke2 {[%clk 00:40:40]} {[%emt 00:00:06]} Ka8 {[%clk
00:37:20]} {[%emt 00:00:34]} 43. Kd3 {[%clk 00:41:04]} {[%emt 00:00:05]} Kb7
{[%clk 00:37:26]} {[%emt 00:00:24]} 44. Kd4 {[%clk 00:41:29]} {[%emt 00:00:05]}
Ka8 {[%clk 00:37:30]} {[%emt 00:00:26]} 45. Ke5 {[%clk 00:41:54]} {[%emt
00:00:05]} Kb7 {[%clk 00:37:20]} {[%emt 00:00:41]} 46. Kxe6 {[%clk 00:42:18]}
{[%emt 00:00:05]} g6 {[%clk 00:37:18]} {[%emt 00:00:32]} 47. Kf6 {[%clk
00:42:27]} {[%emt 00:00:21]} Ka8 {[%emt 00:00:47]} 48. Kxg6 {[%clk 00:42:49]}
{[%emt 00:00:03]} Kb7 {[%clk 00:36:34]} {[%emt 00:01:02]} 49. Kxh5 {[%clk
00:43:14]} {[%emt 00:00:05]} Ka8 {[%clk 00:36:02]} {[%emt 00:01:02]} 50. Kg5
{[%clk 00:42:40]} {[%emt 00:01:04]} Kb7 {[%clk 00:36:04]} {[%emt 00:00:28]} 51.
h5 {[%clk 00:43:03]} {[%emt 00:00:07]} Ka8 {[%clk 00:36:17]} {[%emt 00:00:17]}
52. h6 {[%clk 00:43:30]} {[%emt 00:00:03]} Kb7 {[%clk 00:36:32]} {[%emt
00:00:15]} 53. h7 {[%clk 00:43:55]} {[%emt 00:00:04]} Ka8 {[%clk 00:36:19]}
{[%emt 00:00:43]} 54. h8=Q {[%clk 00:44:11]} {[%emt 00:00:15]} Kb7 {[%clk
00:36:33]} {[%emt 00:00:16]} 55. Qg7+ {[%clk 00:44:19]} {[%emt 00:00:22]} Ka8
{[%clk 00:36:35]} {[%emt 00:00:28]} 56. Qe5 {[%clk 00:44:43]} {[%emt 00:00:06]}
Kb7 {[%clk 00:36:23]} {[%emt 00:00:42]} 57. Qd5+ {[%clk 00:45:09]} {[%emt
00:00:03]} Ka6 {[%clk 00:35:55]} {[%emt 00:00:59]} 58. a8=Q+ {[%clk 00:45:16]}
{[%emt 00:00:23]} Kxb6 {[%clk 00:36:07]} {[%emt 00:00:17]} 59. Qa7# {[%clk
00:45:33]} {[%emt 00:00:13]} 1-0

[Event "Ebbe cup 43"]
[Site "Schackcentrum, Vegatan 20, Gothenburg, Sweden"]
[Date "2022.09.10"]
[Round "2.1"]
[White "Karlsson, Stefan"]
[Black "Ghaderi, Roshan"]
[Result "0-1"]
[TimeControl "90 minutes for 40 moves + 15 minutes for the rest of the game + 30 seconds per move from move one."]
[WhiteFideId "1771183"]
[BlackFideId "1744011"]
[WhiteElo "1660"]
[BlackElo "1741"]

1. e4 {[%clk 01:30:54]} {[%emt 00:00:05]} e5 {[%clk 01:29:53]} {[%emt
00:01:08]} 2. Nc3 {[%clk 01:31:17]} {[%emt 00:00:07]} Nf6 {[%clk 01:30:14]}
{[%emt 00:00:09]} 3. g3 {[%clk 01:30:24]} {[%emt 00:01:24]} d5 {[%clk
01:29:22]} {[%emt 00:01:22]} 4. exd5 {[%clk 01:30:49]} {[%emt 00:00:05]} Nxd5
{[%clk 01:29:45]} {[%emt 00:00:06]} 5. Bg2 {[%clk 01:31:15]} {[%emt 00:00:04]}
Nxc3 {[%clk 01:29:41]} {[%emt 00:00:34]} 6. bxc3 {[%clk 01:31:39]} {[%emt
00:00:06]} Bc5 {[%clk 01:29:41]} {[%emt 00:00:29]} 7. Qh5 {[%clk 01:28:23]}
{[%emt 00:03:45]} Nd7 {[%clk 01:24:43]} {[%emt 00:05:29]} 8. Nf3 {[%clk
01:19:05]} {[%emt 00:09:48]} O-O {[%clk 01:19:00]} {[%emt 00:06:13]} 9. O-O
{[%clk 01:17:03]} {[%emt 00:02:32]} Re8 {[%clk 01:19:03]} {[%emt 00:00:27]} 10.
Ng5 {[%clk 01:16:41]} {[%emt 00:00:53]} Qf6 {[%clk 01:10:26]} {[%emt 00:09:06]}
11. Bd5 {[%clk 01:11:33]} {[%emt 00:05:37]} h6 {[%clk 01:08:38]} {[%emt
00:02:18]} 12. Bxf7+ {[%clk 01:07:36]} {[%emt 00:04:27]} Kh8 {[%clk 01:08:36]}
{[%emt 00:00:33]} 13. Ne4 {[%clk 01:06:17]} {[%emt 00:01:48]} Qe7 {[%clk
01:08:03]} {[%emt 00:01:03]} 14. Bxe8 {[%clk 01:05:07]} {[%emt 00:01:40]} Nf6
{[%clk 01:08:14]} {[%emt 00:00:19]} 15. Nxf6 {[%clk 01:05:18]} {[%emt
00:00:19]} Qxf6 {[%clk 01:08:39]} {[%emt 00:00:05]} 16. d4 {[%clk 01:05:05]}
{[%emt 00:00:43]} exd4 {[%clk 01:07:20]} {[%emt 00:01:49]} 17. Qxc5 {[%clk
01:05:09]} {[%emt 00:00:25]} Bh3 {[%clk 01:07:46]} {[%emt 00:00:04]} 18. Re1
{[%clk 01:05:16]} {[%emt 00:00:23]} Qf3 {[%clk 01:08:12]} {[%emt 00:00:05]} 0-1

[Event "Ebbe cup 43"]
[Site "Schackcentrum, Vegatan 20, Gothenburg, Sweden"]
[Date "2022.09.10"]
[Round "2.2"]
[White "Eldh, Hjalmar"]
[Black "Josefsson, Ivar"]
[Result "1-0"]
[TimeControl "90 minutes for 40 moves + 15 minutes for the rest of the game + 30 seconds per move from move one."]
[WhiteFideId "1767968"]
[BlackFideId "1766040"]
[WhiteElo "1717"]
[BlackElo "1634"]

1. e4 {[%clk 01:30:58]} e5 {[%clk 01:30:58]} {[%emt 00:00:03]} 2. Nf3 {[%clk
01:31:17]} {[%emt 00:00:05]} Nc6 {[%clk 01:31:27]} 3. Bc4 {[%clk 01:31:41]}
{[%emt 00:00:12]} Nf6 {[%clk 01:31:52]} {[%emt 00:00:06]} 4. Ng5 {[%clk
01:31:58]} {[%emt 00:00:13]} d5 {[%clk 01:32:17]} {[%emt 00:00:05]} 5. exd5
{[%clk 01:32:24]} {[%emt 00:00:04]} Na5 {[%clk 01:32:42]} {[%emt 00:00:05]} 6.
Bb5+ {[%clk 01:32:50]} {[%emt 00:00:04]} c6 {[%clk 01:33:01]} {[%emt 00:00:11]}
7. dxc6 {[%clk 01:33:13]} {[%emt 00:00:07]} bxc6 {[%clk 01:33:25]} {[%emt
00:00:06]} 8. Bd3 {[%clk 01:33:38]} {[%emt 00:00:04]} Nd5 {[%clk 01:33:49]}
{[%emt 00:00:07]} 9. Nf3 {[%clk 01:34:00]} {[%emt 00:00:07]} Bd6 {[%clk
01:34:14]} {[%emt 00:00:06]} 10. O-O {[%clk 01:34:22]} {[%emt 00:00:08]} O-O
{[%clk 01:34:39]} {[%emt 00:00:05]} 11. Re1 {[%clk 01:34:49]} {[%emt 00:00:03]}
f5 {[%clk 01:35:04]} {[%emt 00:00:05]} 12. Nxe5 {[%clk 01:35:14]} {[%emt
00:00:05]} Qf6 {[%clk 01:35:28]} {[%emt 00:00:06]} 13. Nf3 {[%clk 01:35:38]}
{[%emt 00:00:06]} g5 {[%clk 01:35:52]} {[%emt 00:00:06]} 14. c4 {[%clk
01:36:04]} {[%emt 00:00:05]} Nf4 {[%clk 01:36:08]} {[%emt 00:00:13]} 15. Bf1
{[%clk 01:36:27]} {[%emt 00:00:07]} g4 {[%clk 01:36:31]} {[%emt 00:00:07]} 16.
d4 {[%clk 01:36:49]} {[%emt 00:00:09]} gxf3 {[%clk 01:36:53]} {[%emt 00:00:06]}
17. Qxf3 {[%clk 01:37:13]} {[%emt 00:00:06]} Ne6 {[%clk 01:37:14]} {[%emt
00:00:10]} 18. Qc3 {[%clk 01:37:38]} {[%emt 00:00:05]} Nxd4 {[%clk 01:33:58]}
{[%emt 00:03:47]} 19. Qxa5 {[%clk 01:35:55]} {[%emt 00:02:13]} Nc2 {[%clk
01:29:01]} {[%emt 00:05:26]} 20. c5 {[%clk 01:36:16]} {[%emt 00:00:09]} Nxe1
{[%clk 01:25:59]} {[%emt 00:03:32]} 21. Qxe1 {[%clk 01:31:59]} {[%emt
00:04:46]} Bxc5 {[%clk 01:25:25]} {[%emt 00:01:04]} 22. Bc4+ {[%clk 01:32:13]}
{[%emt 00:00:16]} Kh8 {[%clk 01:25:16]} {[%emt 00:00:39]} 23. Nd2 {[%clk
01:27:30]} {[%emt 00:05:13]} Bd7 {[%clk 01:09:40]} {[%emt 00:16:07]} 24. Nf3
{[%clk 01:27:35]} {[%emt 00:00:25]} Rfe8 {[%clk 00:58:12]} {[%emt 00:11:59]} 25.
Qa5 {[%clk 01:23:45]} {[%emt 00:04:19]} Bb6 {[%clk 00:48:38]} {[%emt 00:10:04]}
26. Qa3 {[%clk 01:22:42]} {[%emt 00:01:33]} h6 {[%clk 00:48:45]} {[%emt
00:00:23]} 27. Bd2 {[%clk 01:22:15]} {[%emt 00:00:57]} Kh7 {[%clk 00:47:42]}
{[%emt 00:01:34]} 28. Bc3 {[%clk 01:19:10]} {[%emt 00:03:34]} Qe7 {[%clk
00:46:53]} {[%emt 00:01:19]} 29. Qb3 {[%clk 01:08:29]} {[%emt 00:11:11]} Qf8
{[%clk 00:35:10]} {[%emt 00:12:14]} 30. Rd1 {[%clk 01:02:51]} {[%emt 00:06:06]}
Rad8 {[%clk 00:34:04]} {[%emt 00:01:37]} 31. Ne5 {[%clk 00:54:15]} {[%emt
00:09:06]} Bc8 {[%clk 00:31:51]} {[%emt 00:02:43]} 32. Rf1 {[%clk 00:45:03]}
{[%emt 00:09:41]} Qc5 {[%clk 00:25:12]} {[%emt 00:07:10]} 33. Nf7 {[%clk
00:37:50]} {[%emt 00:07:43]} Rd7 {[%clk 00:20:35]} {[%emt 00:05:08]} 34. Be6
{[%clk 00:26:52]} {[%emt 00:11:27]} Rd3 {[%clk 00:12:09]} {[%emt 00:08:57]} 35.
Bxc8 {[%clk 00:26:10]} {[%emt 00:01:12]} Rxc8 {[%clk 00:11:50]} {[%emt
00:00:49]} 36. Qe6 {[%clk 00:26:04]} {[%emt 00:00:34]} Rc7 {[%clk 00:06:46]}
{[%emt 00:05:35]} 37. Qxh6+ {[%clk 00:26:13]} {[%emt 00:00:21]} Kg8 {[%clk
00:07:06]} {[%emt 00:00:11]} 38. Qg7# {[%clk 00:26:33]} {[%emt 00:00:09]} 1-0

[Event "Ebbe cup 43"]
[Site "Schackcentrum, Vegatan 20, Gothenburg, Sweden"]
[Date "2022.09.10"]
[Round "2.3"]
[White "Imani Lasaki, Hamed"]
[Black "Havner, Arvid"]
[Result "1-0"]
[TimeControl "90 minutes for 40 moves + 15 minutes for the rest of the game + 30 seconds per move from move one."]
[WhiteFideId "1766970"]
[BlackFideId "1769308"]
[WhiteElo "1595"]
[BlackElo "1677"]

1. d4 {[%clk 01:30:26]} {[%emt 00:00:33]} Nf6 {[%clk 01:30:52]} {[%emt
00:00:08]} 2. c4 {[%clk 01:30:37]} {[%emt 00:00:18]} e6 {[%clk 01:31:19]}
{[%emt 00:00:04]} 3. Nc3 {[%clk 01:30:17]} {[%emt 00:00:50]} Bb4 {[%clk
01:31:39]} {[%emt 00:00:10]} 4. Bg5 {[%clk 01:29:27]} {[%emt 00:01:20]} d5
{[%clk 01:31:17]} {[%emt 00:00:50]} 5. e3 {[%clk 01:27:08]} {[%emt 00:02:49]}
O-O {[%clk 01:30:48]} {[%emt 00:01:00]} 6. Qc2 {[%clk 01:25:21]} {[%emt
00:02:17]} Nbd7 {[%clk 01:29:43]} {[%emt 00:01:35]} 7. cxd5 {[%clk 01:22:41]}
{[%emt 00:03:10]} exd5 {[%clk 01:28:56]} {[%emt 00:01:17]} 8. Bd3 {[%clk
01:22:47]} {[%emt 00:00:24]} h6 {[%clk 01:28:24]} {[%emt 00:01:02]} 9. Bh4
{[%clk 01:21:39]} {[%emt 00:01:38]} Re8 {[%clk 01:24:38]} {[%emt 00:04:15]} 10.
Nge2 {[%clk 01:20:26]} {[%emt 00:01:43]} c6 {[%clk 01:22:51]} {[%emt 00:02:17]}
11. O-O {[%emt 00:10:35]} Bd6 {[%clk 01:16:25]} 12. Rad1 {[%clk 01:03:58]}
{[%emt 00:13:49]} Qc7 {[%clk 00:53:25]} {[%emt 00:23:31]} 13. Bg3 {[%clk
01:03:12]} {[%emt 00:01:15]} Ng4 {[%clk 00:47:43]} {[%emt 00:06:12]} 14. Nxd5
{[%clk 00:56:46]} {[%emt 00:06:57]} Qa5 {[%clk 00:41:08]} {[%emt 00:07:04]} 15.
Ndf4 {[%clk 00:40:59]} {[%emt 00:16:17]} Qg5 {[%clk 00:28:29]} {[%emt
00:13:08]} 16. e4 {[%clk 00:36:14]} {[%emt 00:05:16]} Bxf4 {[%clk 00:25:51]}
{[%emt 00:03:07]} 17. Nxf4 {[%clk 00:35:45]} {[%emt 00:00:59]} Nb6 {[%clk
00:22:39]} {[%emt 00:03:43]} 18. e5 {[%clk 00:31:16]} {[%emt 00:04:59]} Nd5
{[%clk 00:20:01]} {[%emt 00:03:08]} 19. Nxd5 {[%clk 00:28:22]} {[%emt
00:03:24]} cxd5 {[%clk 00:20:30]} {[%emt 00:00:01]} 20. h3 {[%clk 00:28:25]}
{[%emt 00:00:26]} Ne3 {[%clk 00:20:48]} {[%emt 00:00:11]} 21. fxe3 {[%clk
00:27:35]} {[%emt 00:01:22]} Qxg3 {[%clk 00:21:01]} {[%emt 00:00:17]} 22. Rf3
{[%clk 00:27:47]} {[%emt 00:00:18]} Qg5 {[%clk 00:21:10]} {[%emt 00:00:20]} 23.
Qf2 {[%clk 00:27:42]} {[%emt 00:00:35]} Be6 {[%clk 00:20:58]} {[%emt 00:00:43]}
24. Rg3 {[%clk 00:26:20]} {[%emt 00:01:52]} Qe7 {[%clk 00:19:30]} {[%emt
00:01:58]} 25. e4 {[%clk 00:23:19]} {[%emt 00:03:31]} Rad8 {[%clk 00:15:25]}
{[%emt 00:04:35]} 26. exd5 {[%clk 00:23:00]} {[%emt 00:00:50]} Bxd5 {[%clk
00:14:49]} {[%emt 00:01:06]} 27. Qf5 {[%clk 00:19:04]} {[%emt 00:04:24]} g6
{[%clk 00:14:17]} {[%emt 00:01:03]} 28. Qh5 {[%clk 00:16:48]} {[%emt 00:02:46]}
Kh7 {[%clk 00:13:10]} {[%emt 00:01:35]} 29. Bxg6+ {[%clk 00:15:56]} {[%emt
00:01:25]} 1-0